Cogmind - Beta 13 @@@ ROGUE MODE // 2024.04.07 @ 09:44:24 Player: graour Result: Destroyed by D-53 Grenadier with Mini Grenade Launcher Performance ------------- Evolutions (0) 0 Regions Visited (2) 400 Robots Destroyed (17) 85 Value Destroyed (260) 260 Prototype IDs (0) 0 Alien Tech Used (0) 0 Bonus (0) 0 TOTAL SCORE: 745 Bonus ------- None Cogmind --------- Core Integrity 0/250 Matter 285/300 Energy 89/100 System Corruption 0% Temperature Cool (0) Movement Core (450) Ox8 Location -10/Mines Parts ------- > --- POWER (1) -------- (None) > --- PROPULSION (2) --- (None) > --- UTILITY (2) ------ Small Storage Unit Large Storage Unit > --- WEAPON (2) ------- Light Assault Rifle > --- INVENTORY (15) --- Ion Engine Light Ion Engine Light Ion Engine Light Ion Engine Light Ion Engine Flight Unit Flight Unit Tractor Beam EM Pulse Gun Light Assault Rifle Plasma Flamer Peak State ------------ > --- POWER ------------ Light Ion Engine > --- PROPULSION ------- Light Treads Light Treads > --- UTILITY ---------- Small Storage Unit Large Storage Unit > --- WEAPON ----------- Light Assault Rifle Light Assault Rifle > --- INVENTORY -------- Ion Engine Light Ion Engine Light Ion Engine Light Ion Engine Light Ion Engine Flight Unit Flight Unit Flight Unit Tractor Beam EM Pulse Gun [Rating: 8] Favorites ----------- Power Light Ion Engine Engine Light Ion Engine Propulsion Light Treads Treads Light Treads Flight Unit Flight Unit Utility Small Storage Unit Device Tractor Beam Storage Small Storage Unit Weapon Light Assault Rifle Ballistic Gun Light Assault Rifle Build | -11 -10 -10 ------- Run | Yrd Mat Min Slots Evolved . | . . . Power . | . . . Propulsion . | . . . Utility . | . . . Weapon . | . . . Parts Attached 16 | 8 3 5 Power 6 | 2 2 2 Engine 6 | 2 2 2 Core . | . . . Reactor . | . . . Propulsion 4 | 2 . 2 Treads 2 | 2 . . Leg . | . . . Wheel . | . . . Hover . | . . . Flight 2 | . . 2 Utility 3 | 2 1 . Device 1 | 1 . . Storage 2 | 1 1 . Processor . | . . . Hackware . | . . . Protection . | . . . Artifact . | . . . Weapon 3 | 2 . 1 Energy Gun . | . . . Energy Cannon . | . . . Ballistic Gun 3 | 2 . 1 Ballistic Cannon . | . . . Launcher . | . . . Special Weapon . | . . . Impact Weapon . | . . . Slashing Weapon . | . . . Piercing Weapon . | . . . Special Melee Weapon . | . . . Unidentified Prototypes . | . . . Parts Lost 7 | . . 7 Power 2 | . . 2 Propulsion 4 | . . 4 Utility . | . . . Weapon 1 | . . 1 Highest Loss Streak 7 | . . 7 To Critical Strikes . | . . . Average Slot Usage (%) 98 | . 98 99 Engine 13 | . 14 13 Treads 27 | . 28 27 Storage 27 | . 26 28 Ballistic Gun 28 | . 28 28 Naked Turns . | . . . Heaviest Build 32 | 13 32 32 Greatest Support 40 | 40 40 40 Greatest Overweight (x) 8 | . . 8 Average Overweight (x) . | . . . Largest Inventory Capacity 15 | 8 15 15 Average Capacity 13 | 7 14 15 Most Carried 14 | 2 11 14 Average Carried 9 | . 7 12 Final Capacity 15 | 8 15 15 Final Carried 11 | 2 11 11 Class Distribution -------------------- 100% | Mutant Dominant Class ---------------- Mutant | -10/Materials Mutant | -10/Mines Resources | -11 -10 -10 ----------- Run | Yrd Mat Min Matter Collected 430 | 288 104 38 Remotely 100 | 100 . . Salvage Created 504 | 58 406 40 Parts 31 | 3 24 4 Haulers Intercepted . | . . . Recyclers Shooed 2 | . 2 . Parts Field Recycled . | . . . Retrieved Matter . | . . . Parts Self-Destructed . | . . . Prevented . | . . . Kills | -11 -10 -10 ------- Run | Yrd Mat Min Combat Hostiles Destroyed 13 | . 10 3 Guns 13 | . 10 3 Classes Destroyed 4 | 1 3 . Recycler 3 | 1 2 . Watcher 1 | . 1 . Swarmer 9 | . 6 3 Grunt 4 | . 4 . Best Kill Streak 4 | 1 4 3 Combat Bots Only 3 | . 3 3 Max Kills in Single Turn 1 | 1 1 1 Gunslinging . | . . . Exploded . | . . . Melee . | . . . Uniques/NPCs Destroyed . | . . . Combat | -11 -10 -10 -------- Run | Yrd Mat Min Hostile Shots Fired 121 | . 57 64 Missed 38 | . 17 21 Damage Taken 1093 | . 364 729 Core 252 | . 77 175 Absorbed by Shields . | . . . Core Remaining (%) 100 | 100 . . Volleys Fired 58 | 5 41 12 Largest 2 | 2 2 2 Hottest 40 | 40 40 40 Shots Fired 116 | 10 82 24 Gun 116 | 10 82 24 Cannon . | . . . Launcher . | . . . Special . | . . . Kinetic 116 | 10 82 24 Thermal . | . . . Explosive . | . . . Electromagnetic . | . . . Robot Hit Streak 9 | 9 9 6 Robot Miss Streak 3 | . 2 3 Penetration Max . | . . . Secondary Targets 1 | . . 1 Max Gunslinging Chain 1 | . . 1 Shots Hit Robots 78 | 9 56 13 Core Hits 38 | 4 28 6 Critical Kills . | . . . Critical Parts Destroyed 1 | . 1 . Critical Strikes 1 | . 1 . Destroy 1 | . 1 . Melee Attacks . | . . . Impact . | . . . Slashing . | . . . Piercing . | . . . Sneak Attacks . | . . . Combat Hostiles . | . . . Follow-up Attacks . | . . . Damage Inflicted 655 | 73 475 107 Guns 634 | 72 459 103 Cannons . | . . . Explosions . | . . . Melee . | . . . Ramming 21 | 1 16 4 Kinetic 634 | 72 459 103 Thermal . | . . . Explosive . | . . . Electromagnetic . | . . . Impact . | . . . Slashing . | . . . Piercing . | . . . Highest Corruption . | . . . Average Corruption . | . . . Corruption Purged . | . . . Corruption Blocked . | . . . Overload Shots . | . . . Overflow Damage . | . . . Projectiles . | . . . Explosions . | . . . Melee . | . . . Knockbacks . | . . . Impact . | . . . Kinetic . | . . . Secondary . | . . . Self-Inflicted Damage . | . . . Shots . | . . . Rammed 5 | 2 2 1 Targets Rammed 5 | 2 2 1 Kicked . | . . . Crushed . | . . . Highest Temperature 22 | . 12 22 Average Temperature 9 | . 7 14 Received Heat Transfer 178 | . 78 100 Siege Activations . | . . . Robots Corrupted . | . . . Combat Hostiles . | . . . Parts Fried . | . . . Impact Corruptions . | . . . Robots Melted . | . . . Combat Hostiles . | . . . Parts Melted . | . . . Heat Transferred . | . . . Parts Sabotaged . | . . . Parts Stolen . | . . . Parts Stripped . | . . . Power Chain Reactions . | . . . Alert | -11 -10 -10 ------- Run | Yrd Mat Min Peak Influence 215 | 5 215 101 Initial 31 | . 3 31 Average 73 | 3 81 78 Maximum Alert Level 1 | . 1 . Low Security (%) 90 | 100 81 100 Level 1 9 | . 18 . Level 2 . | . . . Level 3 . | . . . Level 4 . | . . . Level 5 . | . . . High Security . | . . . Max Security . | . . . Squads Dispatched 3 | . 3 . Investigation 3 | . 3 . Extermination . | . . . Reinforcement . | . . . Assault . | . . . Garrison . | . . . Intercept . | . . . Searches Triggered . | . . . Construction Impeded . | . . . Haulers Reinforced . | . . . Active Scanning Responses . | . . . Cargo Convoy Interrupts . | . . . Stealth | -11 -10 -10 --------- Run | Yrd Mat Min Distress Signals 1 | . 1 . Communications Jammed . | . . . Distress Signals . | . . . Times Spotted 35 | . 13 22 Peak Tracking Total 20 | . 3 20 Tactical Retreats 2 | . 1 1 Traps | -11 -10 -10 ------- Run | Yrd Mat Min Traps Triggered 2 | . 2 . Indirectly . | . . . Trap Hack Attempts . | . . . Triggered . | . . . Disarmed . | . . . Reprogrammed . | . . . Reused . | . . . Traps Extracted . | . . . Installed . | . . . Triggered . | . . . Machines | -11 -10 -10 ---------- Run | Yrd Mat Min Machines Disabled . | . . . Max in Single Turn . | . . . Machines Repaired . | . . . Machines Dismantled . | . . . Machines Sabotaged . | . . . Overloaded Fab Kills . | . . . Hacking | -11 -10 -10 --------- Run | Yrd Mat Min Machines Accessed 2 | . 2 . Terminals 2 | . 2 . Fabricators . | . . . Repair Stations . | . . . Recycling Units . | . . . Scanalyzers . | . . . Garrison Access . | . . . Total Hacks 5 | . 5 . Successful 3 | . 3 . Failed 2 | . 2 . Catastrophic 1 | . 1 . Database Lockouts . | . . . Manual 4 | . 4 . Terminals 5 | . 5 . Fabricators . | . . . Repair Stations . | . . . Recycling Units . | . . . Scanalyzers . | . . . Garrison Access . | . . . Terminal Hacks 3 | . 3 . Branch Access Points 1 | . 1 . Recall Investigation 1 | . 1 . Registered Components 1 | . 1 . Fabricator Hacks . | . . . Repair Station Hacks . | . . . Recycling Unit Hacks . | . . . Scanalyzer . | . . . Garrison Access Hacks . | . . . Unauthorized Hacks . | . . . Terminals . | . . . Fabricators . | . . . Repair Stations . | . . . Recycling Units . | . . . Scanalyzers . | . . . Garrison Access . | . . . Data Cores Recovered . | . . . Used . | . . . Hacking Detections 1 | . 1 . Full Trace Events 1 | . 1 . Feedback Events . | . . . Feedback Blocked . | . . . Robot Schematics Acquired . | . . . Robots Built . | . . . Authchips . | . . . Time . | . . . Total Robot Build Rating . | . . . Part Schematics Acquired . | . . . Parts Built . | . . . Authchips . | . . . Time . | . . . Total Part Build Rating . | . . . Parts Repaired . | . . . Time . | . . . Parts Recycled . | . . . Recycled Matter . | . . . Retrieved Matter . | . . . Retrieved Components . | . . . Parts Scanalyzed . | . . . Part Schematics Acquired . | . . . Parts Damaged . | . . . Bothacking | -11 -10 -10 ------------ Run | Yrd Mat Min Used RIF Installer . | . . . Robots Hacked . | . . . Non-combat . | . . . Combat . | . . . Robot Hacks Applied . | . . . Relay Couplers Released . | . . . Fabnet Peak Effective % . | . . . Robots Rewired . | . . . Allies Hacked . | . . . Hacks Repelled . | . . . Allies | -11 -10 -10 -------- Run | Yrd Mat Min Total Allies 6 | . . 6 Largest Group 6 | . . 6 Highest-Rated Group 111 | . . 111 Highest-Rated Ally 31 | . . 31 Total Orders . | . . . Ally Attacks 24 | . . 24 Total Damage 367 | . . 367 Kills 6 | . . 6 Allies Corrupted . | . . . Allies Melted 1 | . . 1 Intel | -11 -10 -10 ------- Run | Yrd Mat Min Robot Analysis Total . | . . . Derelict Logs Recovered 1 | . . 1 Drone Launches . | . . . Drone Recoveries . | . . . Exploration | -11 -10 -10 ------------- Run | Yrd Mat Min Turns Passed 1198 | 109 599 490 Spaces Moved 621 | 54 288 279 Core 6 | 5 . 1 Treads 613 | 49 288 276 Legs . | . . . Wheels . | . . . Hover . | . . . Flight 2 | . . 2 Fastest Speed 50 | 50 160 160 Average Speed 159 | 149 160 161 Slowest Speed 450 | 160 160 450 Overloaded Moves . | . . . Propulsion Burnouts . | . . . Robots Hopped . | . . . Cave-ins Triggered . | . . . Exploration Rate (%) 38 | 5 52 57 Regions Visited 2 Branch Regions 1 Pre-discovered Areas . | . . . Known Exits Taken 1 | . 1 . Unknown Exits Taken 1 | 1 . . Scrap Searched 3 | . . 3 Spaces Dug . | . . . Terrain Destroyed . | . . . Melee . | . . . Projectile . | . . . AOE . | . . . Terrain Rammed . | . . . Walls Destroyed . | . . . Machines Disabled . | . . . Actions | -11 -10 -10 --------- Run | Yrd Mat Min Total 726 | 69 359 298 Wait 19 | . 19 . Move 620 | 54 287 279 Hop . | . . . Pick Up 8 | 1 6 1 Fast Attach 8 | 7 1 . Attach 3 | . . 3 Detach 1 | . 1 . Swap 5 | 1 2 2 Drop . | . . . Fire 58 | 5 41 12 Melee . | . . . Ram . | . . . Kick . | . . . Crush 4 | 1 2 1 Escape Stasis . | . . . Rewire . | . . . Trap . | . . . Miscellaneous . | . . . Route ------- -11/Scrapyard -10/Materials (discovered 3 exits: [*Mat] / *Min x2) -10/Mines (discovered 2 exits: [*Mat x2]) History --------- Turn | Location | Event 7 | -11/Scrapyard | Discovered new exit (range 14) 110 | -11/Scrapyard | Entered Materials 309 | -10/Materials | Build established: Mutant 523 | -10/Materials | Discovered new exit (range 11) 542 | -10/Materials | Identified exit to Mines 709 | -10/Materials | Entered Mines 757 | -10/Mines | Discovered new exit (range 3) 758 | -10/Mines | Escorted by a lone wolf Derelict 792 | -10/Mines | Discovered new exit (range 10) 822 | -10/Mines | A weapon hastily lodged in a ceiling crevice suddenly fell to the ground 929 | -10/Mines | Learned location of 2 exits from Materials 956 | -10/Mines | Assisted by bots powering up and referring to "LRC-V3" 1152 | -10/Mines | Assembled infested the area 1157 | -10/Mines | Assisted by a Guerilla fighting off Assembled 1187 | -10/Mines | Core integrity fell below 50% 1191 | -10/Mines | Core integrity fell below 20% 1199 | -10/Mines | Destroyed by D-53 Grenadier with Mini Grenade Launcher Last Messages --------------- TH-HAM(g) overheating. TH-HAM(g) critical meltdown. TH-HAM(g): "Mission, incomplete...*fzzt*" The unstable cave ceiling collapses. Lgt. Treads destroyed. as-53998 destroyed. as-26443 destroyed. The unstable cave ceiling collapses. Knocked back. The unstable cave ceiling collapses. as-45094 destroyed. as-81563 destroyed. as-98399 destroyed. Ion Engine destroyed. as-70843 destroyed. Lgt. Assault Rifle destroyed. as-26131 destroyed. Lgt. Ion Engine destroyed. as-69187 destroyed. Flight Unit destroyed. Map ----- +----------------------------------------------------+ | ####???????# #???# #???????????????????? | | # ##??????# #???# #???????????????????? | | #??????# #???# ##???????????????????? | | #??????# %#???# ###????????????????????? | | ##?????#= #???# #############??????????? | | ##????# #???# %! #??????????? | | #????# #???# *| #??????????? | | #????# ##??######### ### #??????????? | | ##???# ##?????????# #?# ###????????? | | #???# ##????????# ## ##???????? | | ##?## #????????# ##??????? | | %" ### #????????## ##?????? | | " ##????????## ##????? | | !%] #?????????### """ #????? | | #???????????## """ #????? | | #????????????# """ ##???? | | ##????????????# ##??? | | ##????????????# #??? | | # # ##???????????## ### #?? | | ## # % #???####?????###?## #?? | | ?# #### # ##### #??????????## #?? | | ?# #???# %= # ##???????????####?? | | #???# #????????????????? | | ## #???##### d ###??????????????? | | ?# #????????## ##?????????????? | | ?# #?????????## a @ #?????????????? | | ?# ???????????## #?????????????? | | ?# ???????????# = ##?????????????? | | ?? ???????????# = ###??????????????? | | ???????????????# %% #????????????????? | | ???????????????## a #????????????????? | | ????????????????### a ## ???????????????? | | ??????????????????###a ## ###??????????????? | | ????????????????????# ## #????????????????? | | ???????????????????? #?a #????????????????? | | ????????????????????% ? #????????????????? | | ??????????????????? ? #????????????????? | | ??????????????????? #[ ##????????????????? | | ?????????????????? # ??????????????????? | | ??????????????????? ? ??????????????????? | | ???????????????????? ? ??????????????????? | | ???????????????????? #????????????????????? | | ???????????????????? ?????????????????????? | | ????????????????????????????????????????????? | | ????????????????????????????????????????????? | | ????????????????????????????????????????????? | | ????????????????????????????????????????????? | | ????????????????????????????????????????????? | | ????????????????????????????????????????????? | | ????????????????????????????????????????????? | +----------------------------------------------------+ Best States ------------- Heat Dissipation 25 Energy Generation 10 Energy Capacity 250 Matter Stores 300 Matter Capacity 300 Sight Range 16 Terrain Scan Density 10 Evasion (%) 40 Recoil Reduction 2 Item Schematics ----------------- None Robot Schematics ------------------ None Fabricated ------------ Nothing Alien Tech Used ----------------- None Achievements -------------- GoHome() Hunted Challenges ------------ None Game ------ Seed MiningRainbowLoader Manual? 0 Play Time 00:13:51 Cumulative 10.9 hours Start 2024.04.06 @ 23:10:52 End 2024.04.07 @ 09:44:24 Sessions 3 Manual Loads 0 Difficulty Rogue Special Mode None Game No. 25 Rogue 25 Adventurer 0 Explorer 0 Win Type - Total 0 Types 0/0/0/0/0/0/0/0/0 Lore% 17 Gallery% 20 Achievement% 16 Wizard Run 0 Options --------- Layout 1 ASCII 0 Keyboard 1 Movement Arrows Keybinds 0 Fullscreen 1 Font 24/Smallcaps Map View 50x35 Zoom Use 0% Tactical HUD 0 Map Filters NONE Filters NONE Steam 1 RUN: 3d14a697-6599-40cf-a2c2-351f42375c5b